bitfinex-derivatives/quotes_BTCF0:USTF0_20251208
["timestamp","ask_amount","ask_price","bid_price","bid_amount"]
[1765170321881,0.09183712,91163.0,91162.0,0.06884]
[1765170322086,0.06677463,91163.0,91162.0,0.06884]
[1765170322278,0.06877463,91163.0,91162.0,0.06884]
[1765170322782,0.06677463,91163.0,91162.0,0.06884]
[1765170323085,0.06877463,91163.0,91162.0,0.06884]
[1765170323487,0.06977463,91163.0,91162.0,0.06884]
[1765170323880,0.07077463,91163.0,91162.0,0.06984]
[1765170327390,0.0775817,91145.0,91144.0,0.06900463]
[1765170327689,0.0775817,91145.0,91144.0,0.00016463]
[1765170328192,0.06661,91134.0,91133.0,0.1016931]
[1765170328394,0.06661,91143.0,91140.0,0.02188]
[1765170328585,0.06661,91143.0,91142.0,0.06884]
[1765170329390,0.077583,91134.0,91133.0,0.09088463]
[1765170329592,0.077583,91134.0,91133.0,0.03567463]
[1765170329988,0.077583,91134.0,91133.0,0.09088463]
[1765170330786,0.079583,91134.0,91133.0,0.09188463]
[1765170331290,0.06861,91134.0,91133.0,0.09188463]
[1765170331791,0.06861,91134.0,91133.0,0.09488463]
[1765170332094,0.06661,91134.0,91133.0,0.09388463]
[1765170332298,0.002,91134.0,91133.0,0.09188463]
[1765170332487,0.002,91134.0,91133.0,0.09388463]
[1765170338008,0.06861,91134.0,91133.0,0.09388463]
[1765170339109,0.06861,91134.0,91133.0,0.03867463]
[1765170339606,0.06861,91134.0,91133.0,0.00316463]
[1765170341005,0.06861,91134.0,91133.0,0.03867463]
[1765170341205,0.06861,91134.0,91133.0,0.07200463]
[1765170344299,0.06861,91134.0,91133.0,0.09236463]
[1765170349225,0.002,91134.0,91133.0,0.09236463]
[1765170357632,0.0109713,91148.0,91147.0,0.06498]
[1765170358132,0.03587538,91148.0,91147.0,0.06498]
[1765170359833,0.04687538,91148.0,91147.0,0.06598]
[1765170360331,0.011,91148.0,91147.0,0.06598]
[1765170360528,0.009,91148.0,91147.0,0.06598]
[1765170360723,0.05918073,91170.0,91147.0,0.06598]
[1765170360724,0.0109693,91165.0,91151.0,0.06498]
[1765170360924,0.0735693,91165.0,91164.0,0.08534]
[1765170361128,0.09847803,91165.0,91164.0,0.08534]
[1765170362230,0.13413827,91170.0,91164.0,0.08534]
[1765170362231,0.0109688,91169.0,91168.0,0.06498]
[1765170362432,0.0735688,91169.0,91168.0,0.06498]
[1765170363838,0.0745688,91169.0,91168.0,0.06798]
[1765170369135,0.0119688,91169.0,91168.0,0.06798]
[1765170369334,0.0745688,91169.0,91168.0,0.06798]
[1765170375638,0.001,91169.0,91168.0,0.06798]
[1765170378043,0.05122,91169.0,91168.0,0.06798]
[1765170383452,0.0611904,91156.0,91155.0,0.07530454]
[1765170383750,0.0611904,91156.0,91155.0,0.00016454]
[1765170383957,0.08602041,91156.0,91155.0,0.00016454]
[1765170384550,0.08702041,91156.0,91155.0,0.05839454]
[1765170385055,0.08702041,91156.0,91155.0,0.03816454]
[1765170385249,0.08802041,91156.0,91155.0,0.06439454]
[1765170385449,0.08802041,91156.0,91155.0,0.05739454]
[1765170385647,0.08902041,91156.0,91155.0,0.05739454]
[1765170386556,0.08902041,91156.0,91155.0,0.03016454]
[1765170387158,0.0890376,91156.0,91155.0,0.03016454]
[1765170387465,0.0870376,91156.0,91155.0,0.02916454]
[1765170387647,0.0890376,91156.0,91155.0,0.03016454]
[1765170387852,0.0890376,91156.0,91155.0,0.00116454]
[1765170388456,0.05022,91146.0,91145.0,0.00739454]
[1765170388653,0.05022,91146.0,91145.0,0.06362454]
[1765170388855,0.05022,91146.0,91145.0,0.05862454]
[1765170389357,0.05022,91146.0,91145.0,0.05762454]
[1765170389549,0.05022,91146.0,91145.0,0.05862454]
[1765170390753,0.05122,91146.0,91145.0,0.05862454]
[1765170391363,0.05022,91146.0,91145.0,0.05862454]
[1765170391551,0.05122,91146.0,91145.0,0.05862454]
[1765170396460,0.41202,91146.0,91145.0,0.05862454]
[1765170399565,0.41202,91146.0,91145.0,0.03]
[1765170400065,0.41202,91146.0,91145.0,0.05723]
[1765170400768,0.41202,91146.0,91145.0,0.07404]
[1765170403257,0.38691,91146.0,91145.0,0.07404]
[1765170403464,0.3618,91146.0,91145.0,0.07404]
[1765170412174,0.41748,91146.0,91145.0,0.07404]
[1765170414569,0.41916067,91146.0,91145.0,0.07404]
[1765170415870,0.36348067,91146.0,91145.0,0.07404]
[1765170417278,0.00268067,91146.0,91145.0,0.07404]
[1765170417487,0.00016454,91155.0,91154.0,0.05787]
[1765170417776,0.00016454,91155.0,91154.0,0.13676545]
[1765170418074,0.00016454,91155.0,91154.0,0.05787]
[1765170418378,0.00016454,91155.0,91154.0,0.13672932]
[1765170418582,0.00216454,91155.0,91154.0,0.13772932]
[1765170418972,0.00216454,91155.0,91154.0,0.14869992]
[1765170419279,0.00216454,91155.0,91154.0,0.0698406]
[1765170419480,0.00516454,91155.0,91154.0,0.0698406]
[1765170420579,0.42164454,91155.0,91154.0,0.001]
[1765170421173,0.44644581,91155.0,91154.0,0.001]
[1765170429591,0.0666522,91141.0,91140.0,0.07468]
[1765170429778,0.0666522,91141.0,91140.0,0.05787]
[1765170430983,0.0666522,91141.0,91140.0,0.05887]
[1765170431487,0.0666522,91141.0,91140.0,0.06187]
[1765170432581,0.0666522,91141.0,91140.0,0.05987]
[1765170433391,0.0676522,91141.0,91140.0,0.05887]
[1765170438392,0.0676522,91141.0,91140.0,0.02979]
[1765170438790,0.0676522,91141.0,91140.0,0.05951]
[1765170441394,0.0676522,91141.0,91140.0,0.07595]
[1765170444597,0.4284522,91141.0,91140.0,0.07595]
[1765170445195,0.3618,91141.0,91140.0,0.0869223]
[1765170446092,0.001,91141.0,91140.0,0.0869223]
[1765170446297,0.3608,91150.0,91149.0,0.0686912]
[1765170448000,0.3628,91150.0,91149.0,0.0686912]
[1765170448390,0.002,91150.0,91149.0,0.0686912]
[1765170448585,0.004,91150.0,91149.0,0.0696912]
[1765170449200,0.002,91150.0,91149.0,0.0686912]
[1765170449401,0.003,91150.0,91149.0,0.0696912]
[1765170449995,0.001,91150.0,91149.0,0.0696912]
[1765170450200,0.001,91150.0,91149.0,0.0736912]
[1765170452003,0.001,91150.0,91149.0,0.4344912]
[1765170460809,0.05934,91150.0,91149.0,0.4344912]
[1765170461007,0.05934,91150.0,91149.0,0.42352]
[1765170461401,0.001,91150.0,91149.0,0.42352]
[1765170463910,0.05864,91150.0,91149.0,0.42352]
[1765170464910,0.02899,91150.0,91149.0,0.42352]
[1765170466802,0.02899,91150.0,91149.0,0.06272]
[1765170467409,0.02899,91150.0,91149.0,0.0736912]
[1765170467614,0.001,91150.0,91149.0,0.0736912]
[1765170467917,0.00016454,91155.0,91154.0,0.0673206]
[1765170469414,0.00016454,91155.0,91154.0,0.0693206]
[1765170469616,0.00016454,91155.0,91154.0,0.0703206]
[1765170475310,0.00016454,91155.0,91154.0,0.14917992]
[1765170476213,0.00016454,91155.0,91154.0,0.0703206]
[1765170480325,0.02913454,91155.0,91154.0,0.0703206]
[1765170480620,0.05664454,91155.0,91154.0,0.0703206]
[1765170480814,0.00016454,91155.0,91154.0,0.0703206]
[1765170484118,0.02913454,91155.0,91154.0,0.0703206]
[1765170484320,0.05664454,91155.0,91154.0,0.0703206]
[1765170485036,0.05664454,91155.0,91154.0,0.0325]
[1765170485212,0.05664454,91155.0,91154.0,0.05974]
[1765170486132,0.05764454,91155.0,91154.0,0.05874]
[1765170486321,0.05764454,91155.0,91154.0,0.05674]
[1765170486519,0.05864454,91155.0,91154.0,0.05674]
[1765170494728,0.05885,91149.0,91148.0,0.07892713]
[1765170494928,0.05885,91149.0,91140.0,0.01644]
[1765170494929,0.05885,91140.0,91139.0,0.02982]
[1765170495128,0.41965,91140.0,91139.0,0.0572]
[1765170497024,0.41965,91140.0,91139.0,0.0622]
[1765170497434,0.42065,91140.0,91139.0,0.0642]
[1765170498033,0.42065,91140.0,91139.0,0.0602]
[1765170498228,0.41965,91140.0,91139.0,0.0582]
[1765170499034,0.42065,91140.0,91139.0,0.0582]
[1765170500039,0.42065,91140.0,91139.0,0.0572]
[1765170500428,0.41965,91140.0,91139.0,0.0572]
[1765170500834,0.41965,91140.0,91139.0,0.0582]
[1765170503630,0.41965,91140.0,91139.0,0.0691724]
[1765170506431,0.3608,91140.0,91139.0,0.0691724]
[1765170512540,0.0698214,91148.0,91147.0,0.0572]
[1765170512841,0.4306214,91148.0,91147.0,0.0572]
[1765170513342,0.41965,91148.0,91147.0,0.0681715]
[1765170513544,0.42165,91148.0,91147.0,0.0691715]
[1765170513850,0.42365,91148.0,91147.0,0.0691715]
[1765170514446,0.42365,91148.0,91147.0,0.0582]
[1765170514738,0.42265,91148.0,91147.0,0.0572]
[1765170514943,0.42065,91148.0,91147.0,0.0572]
[1765170516841,0.3618,91148.0,91147.0,0.0572]
[1765170517140,0.001,91148.0,91147.0,0.0572]
[1765170517835,0.00016454,91155.0,91154.0,0.0572]
[1765170518844,0.00016454,91155.0,91154.0,0.0681706]
[1765170520349,0.00116454,91155.0,91154.0,0.0781706]
[1765170520846,0.00016454,91155.0,91154.0,0.0741706]
[1765170521046,0.00116454,91155.0,91154.0,0.0761706]
[1765170521750,0.06001454,91155.0,91154.0,0.0761706]
[1765170522050,0.06001454,91155.0,91154.0,0.0652]
[1765170534167,0.00116454,91155.0,91154.0,0.0652]
[1765170536360,0.02850454,91155.0,91154.0,0.0652]
[1765170536663,0.00116454,91155.0,91154.0,0.0652]
[1765170539268,0.00116454,91155.0,91154.0,0.14401445]
[1765170539468,0.00116454,91155.0,91154.0,0.0652]
[1765170539866,0.0024548,91157.0,91156.0,0.07109]
[1765170540066,0.00322893,91167.0,91166.0,0.0657192]
[1765170540266,0.06009893,91167.0,91166.0,0.05475]
[1765170541063,0.00322893,91167.0,91166.0,0.05475]
[1765170542567,0.00322893,91167.0,91166.0,0.05575]
[1765170542965,0.41697,91175.0,91174.0,0.0677782]
[1765170543172,0.3608,91175.0,91174.0,0.0677782]
[1765170544279,0.00016454,91176.0,91175.0,0.07674]
[1765170544468,0.00477718,91188.0,91182.0,0.0701772]
[1765170545362,0.00477718,91188.0,91182.0,0.5790572]
[1765170545869,0.3668,91183.0,91182.0,0.5790572]
[1765170546268,0.3668,91183.0,91182.0,0.58997808]
[1765170547072,0.3698,91183.0,91182.0,0.59097808]
[1765170551474,0.39687,91183.0,91182.0,0.59097808]
[1765170552663,0.3698,91183.0,91182.0,0.59097808]
[1765170554781,0.3968,91183.0,91182.0,0.59097808]
[1765170555175,0.3698,91183.0,91182.0,0.59097808]
[1765170559891,0.3968,91183.0,91182.0,0.59097808]
[1765170560302,0.009,91183.0,91182.0,0.59097808]
[1765170560494,0.009,91183.0,91182.0,0.95177808]
[1765170560692,0.036,91183.0,91182.0,0.95177808]
[1765170560892,0.06404,91183.0,91182.0,0.95177808]
[1765170563895,0.06404,91183.0,91182.0,0.43193088]
[1765170564097,0.06404,91183.0,91182.0,0.37272088]
[1765170564489,0.06404,91183.0,91182.0,0.001]
[1765170564695,0.027,91158.0,91150.0,0.01671]
[1765170564900,0.4268101,91158.0,91157.0,0.05696454]
[1765170565601,0.41584,91158.0,91157.0,0.05696454]
[1765170566004,0.41684,91158.0,91157.0,0.0747197]
[1765170566706,0.41584,91158.0,91157.0,0.0737197]
[1765170567305,0.42639,91158.0,91157.0,0.0169197]
[1765170567498,0.42639,91158.0,91157.0,0.00416454]
[1765170568097,0.42639,91158.0,91157.0,0.00316454]
[1765170568298,0.41584,91158.0,91157.0,0.06096454]
[1765170568907,0.41584,91158.0,91157.0,0.05696454]
[1765170569207,0.41684,91158.0,91157.0,0.05896454]
[1765170569405,0.028,91158.0,91157.0,0.05896454]
[1765170569605,0.05604,91158.0,91157.0,0.05896454]
[1765170570708,0.05604,91158.0,91157.0,0.05696454]
[1765170571408,0.05604,91158.0,91157.0,0.05896454]
[1765170571609,0.05504,91158.0,91157.0,0.05996454]
[1765170572013,0.05504,91158.0,91157.0,0.06096454]
[1765170572207,0.42555,91158.0,91157.0,0.00416454]
[1765170572399,0.42555,91158.0,91157.0,0.00316454]
[1765170572603,0.42555,91158.0,91157.0,0.00416454]
[1765170573214,0.42555,91158.0,91157.0,0.00316454]
[1765170573414,0.42655,91158.0,91157.0,0.00316454]
[1765170574416,0.42655,91158.0,91157.0,0.00016454]
[1765170576815,0.05504,91154.0,91153.0,0.01087816]
[1765170577017,0.05504,91150.0,91148.0,0.3608]
[1765170578017,0.05504,91150.0,91149.0,0.01126994]
[1765170578316,0.05504,91150.0,91149.0,0.02815131]
[1765170578709,0.05504,91150.0,91149.0,0.03115131]
[1765170580116,0.05504,91150.0,91149.0,0.00112131]
[1765170580512,0.05604,91150.0,91149.0,0.02915131]
[1765170581314,0.05604,91150.0,91149.0,0.05792131]
[1765170585415,0.05752,91150.0,91149.0,0.05792131]
[1765170587215,0.05752,91150.0,91149.0,0.00112131]
[1765170594025,0.05752,91150.0,91149.0,0.05719131]
[1765170595624,0.05752,91150.0,91149.0,0.02926131]
[1765170596320,0.08241411,91150.0,91149.0,0.00112131]
[1765170596525,0.08241411,91150.0,91140.0,0.00016454]
[1765170596526,0.05914,91141.0,91140.0,0.00016454]
[1765170596720,0.4309122,91141.0,91140.0,0.00016454]
[1765170597120,0.0701143,91123.0,91122.0,0.07287]
[1765170597526,0.07021068,91123.0,91122.0,0.07287]
[1765170598131,0.05923638,91123.0,91122.0,0.07287]
[1765170598724,0.05923638,91123.0,91122.0,0.08360842]
[1765170598928,0.05923638,91123.0,91122.0,0.08660842]
[1765170599124,9.638e-05,91123.0,91122.0,0.09758292]
[1765170599330,9.638e-05,91123.0,91122.0,0.09858292]
[1765170601223,0.07021068,91123.0,91122.0,0.08760842]
[1765170601423,0.07021068,91123.0,91122.0,0.07687]
[1765170601625,0.07021068,91123.0,91122.0,0.004]
[1765170602222,0.43101068,91123.0,91122.0,0.06007]
[1765170602626,0.43101068,91123.0,91122.0,0.07687]
[1765170602835,0.43101068,91123.0,91122.0,0.06007]
[1765170606030,0.36089638,91123.0,91122.0,0.07751]
[1765170607033,0.36089638,91123.0,91122.0,0.0884845]
[1765170607235,9.638e-05,91123.0,91122.0,0.0884845]
[1765170609434,0.09924379,91132.0,91131.0,0.05902]
[1765170609743,0.00016454,91132.0,91131.0,0.0699934]
[1765170610436,0.3608,91143.0,91142.0,0.05902]
[1765170610839,0.41816,91143.0,91142.0,0.05902]
[1765170611544,0.38842,91143.0,91142.0,0.05902]
[1765170611737,0.3648,91143.0,91142.0,0.06002]
[1765170611932,0.4298,91143.0,91142.0,0.06002]
[1765170612338,0.4208,91143.0,91142.0,0.06002]
[1765170612643,0.4168,91143.0,91142.0,0.06302]
[1765170612840,0.38842,91143.0,91142.0,0.06302]
[1765170614040,0.3608,91143.0,91142.0,0.06302]
[1765170614246,0.3507048,91143.0,91142.0,0.06302]
[1765170614440,0.428321,91151.0,91150.0,0.05746]
[1765170614845,0.41735,91151.0,91150.0,0.05746]
[1765170617042,0.41835,91151.0,91150.0,0.05746]
[1765170617537,0.41835,91151.0,91150.0,0.05846]
[1765170617742,0.41735,91151.0,91150.0,0.05946]
[1765170625154,0.00016454,91152.0,91151.0,0.068431]
[1765170627562,0.00016454,91152.0,91151.0,0.070431]
[1765170628758,0.00016454,91152.0,91151.0,0.431231]
[1765170630358,0.067519,91168.0,91167.0,0.05746]
[1765170631160,0.067519,91168.0,91167.0,0.06845685]
[1765170632660,0.070519,91168.0,91167.0,0.06945685]
[1765170632860,0.077519,91168.0,91167.0,0.06945685]
[1765170633262,0.075519,91168.0,91167.0,0.06845685]
[1765170633654,0.069519,91168.0,91167.0,0.06845685]
[1765170634159,0.069519,91168.0,91167.0,0.05746]
[1765170634360,0.05655,91159.0,91158.0,0.00016454]
[1765170634564,0.41735,91159.0,91158.0,0.00016454]
[1765170634861,0.41735,91159.0,91140.0,0.01731]
[1765170635065,0.05655,91141.0,91140.0,0.07477]
[1765170635460,0.0675222,91141.0,91140.0,0.04067146]
[1765170635867,0.0675222,91141.0,91140.0,0.06827146]
[1765170636065,0.05655,91141.0,91140.0,0.06827146]
[1765170636863,0.0675222,91141.0,91140.0,0.06746]
[1765170637059,0.0675222,91141.0,91140.0,0.011]
[1765170637470,0.4283222,91141.0,91140.0,0.002]
[1765170637765,0.4283222,91141.0,91140.0,0.001]
[1765170638067,0.4283222,91141.0,91140.0,0.002]
[1765170639169,0.4313222,91141.0,91140.0,0.001]
[1765170639367,0.4313222,91141.0,91131.0,0.00016454]
[1765170639368,0.0675233,91132.0,91131.0,0.00016454]
[1765170639664,0.4283233,91132.0,91131.0,0.03002454]
[1765170639972,0.4283233,91132.0,91131.0,0.05762454]
[1765170640361,0.41735,91132.0,91131.0,0.05762454]
[1765170640666,0.41835,91132.0,91131.0,0.05862454]
[1765170640868,0.42035,91132.0,91131.0,0.05862454]
[1765170642176,0.4293233,91132.0,91131.0,0.05862454]
[1765170642364,0.4283233,91132.0,91131.0,0.03002454]
[1765170643468,0.4283233,91132.0,91131.0,0.00016454]
[1765170643772,0.05823,91107.0,91106.0,0.0581]
[1765170643972,0.05823,91107.0,91106.0,0.06924026]
[1765170644568,0.05823,91107.0,91106.0,0.01114026]
[1765170644770,0.05823,91101.0,91100.0,0.4189]
[1765170646376,0.05823,91101.0,91100.0,0.4289]
[1765170646574,0.05923,91101.0,91100.0,0.4329]
[1765170647276,0.05923,91101.0,91100.0,0.44405241]
[1765170648076,0.001,91101.0,91100.0,0.44405241]
[1765170649178,0.05923,91101.0,91100.0,0.08325241]
[1765170649879,0.05923,91101.0,91100.0,0.0721]
[1765170653774,0.05923,91101.0,91100.0,0.014]
[1765170654180,0.05923,91101.0,91100.0,0.0721]
[1765170654876,0.03058,91101.0,91100.0,0.0830771]
[1765170655080,0.03058,91101.0,91100.0,0.0721]
[1765170655480,0.05923,91101.0,91100.0,0.0721]
[1765170656181,0.05923,91101.0,91100.0,0.04284]
[1765170656378,0.05923,91101.0,91100.0,0.014]
[1765170656680,0.05923,91101.0,91100.0,0.0721]
[1765170658988,0.05923,91101.0,91090.0,0.00109782]
[1765170658989,0.0765182,91091.0,91090.0,0.00109782]
[1765170659281,0.4373182,91091.0,91090.0,0.00109782]
[1765170660491,0.4273982,91091.0,91090.0,0.03085782]
[1765170660680,0.4273982,91091.0,91090.0,0.00109782]
[1765170661184,0.4273982,91091.0,91090.0,0.03685782]
[1765170661786,0.4283982,91091.0,91090.0,0.04085782]
[1765170662284,0.4283982,91091.0,91090.0,0.06885782]
[1765170663081,0.4283982,91091.0,91090.0,0.01109782]
[1765170663281,0.4383182,91091.0,91090.0,0.01109782]
[1765170665589,0.4283982,91091.0,91090.0,0.06885782]
[1765170665887,0.3618,91091.0,91090.0,0.06885782]
[1765170666489,0.001,91091.0,91090.0,0.06885782]
[1765170670888,0.3608,91103.0,91090.0,0.06885782]
[1765170670889,0.3608,91103.0,91102.0,0.05776]
[1765170672009,0.3608,91103.0,91102.0,0.05976]
[1765170672194,0.38897,91103.0,91102.0,0.05976]
[1765170672396,0.39197,91103.0,91102.0,0.05976]
[1765170673408,0.3648,91103.0,91102.0,0.05976]
[1765170674412,0.004,91103.0,91102.0,0.05976]
[1765170679112,0.3608,91125.0,91115.0,0.0565]
[1765170679412,0.3608,91125.0,91115.0,0.0674753]
[1765170680299,0.00116464,91116.0,91115.0,0.0674753]
[1765170680500,0.00916464,91116.0,91115.0,0.0674753]
[1765170681005,4.64e-06,91116.0,91115.0,0.0674753]
[1765170681414,0.4265921,91142.0,91141.0,0.0565]
[1765170681802,0.4265921,91142.0,91141.0,0.02722]
[1765170682014,0.4265921,91142.0,91133.0,0.0176]
[1765170682015,0.065793,91134.0,91133.0,0.02722]
[1765170682520,0.065793,91134.0,91133.0,0.0565]
[1765170683610,0.428593,91134.0,91133.0,0.0575]
[1765170684117,0.435593,91134.0,91133.0,0.0575]
[1765170685718,0.435593,91134.0,91133.0,0.02822]
[1765170686520,0.435593,91134.0,91133.0,0.001]
[1765170686708,0.065796,91109.0,91108.0,0.4173]
[1765170686900,0.065796,91109.0,91108.0,0.0565]
[1765170688016,0.065796,91109.0,91108.0,0.0625]
[1765170688811,0.066796,91109.0,91108.0,0.0645]
[1765170689616,0.066796,91109.0,91108.0,0.0635]
[1765170690122,0.066796,91109.0,91108.0,0.0585]
[1765170690309,0.065796,91109.0,91108.0,0.0615]
[1765170690510,0.066796,91109.0,91108.0,0.0625]
[1765170695217,0.05582,91109.0,91108.0,0.0734761]
[1765170695419,0.001,91109.0,91108.0,0.0734761]
[1765170697012,0.02832,91109.0,91108.0,0.0734761]
[1765170697617,0.05482,91109.0,91108.0,0.0615]
[1765170697915,0.05582,91109.0,91108.0,0.0635]
[1765170698312,0.05482,91109.0,91108.0,0.0615]
[1765170698517,0.05582,91109.0,91108.0,0.0635]
[1765170698823,0.001,91109.0,91108.0,0.0635]
[1765170699215,0.05582,91109.0,91108.0,0.007]
[1765170699418,0.05582,91109.0,91090.0,0.00109782]
[1765170699419,0.05482,91091.0,91090.0,0.00109782]
[1765170699723,0.05482,91091.0,91090.0,0.05759782]
[1765170700215,0.14333956,91100.0,91099.0,0.0565]
[1765170700216,0.05498464,91100.0,91099.0,0.0565]
[1765170700610,0.06596174,91100.0,91099.0,0.0565]
[1765170701319,0.42676174,91100.0,91099.0,0.0565]
[1765170701527,0.42676174,91100.0,91099.0,0.02722]
[1765170701716,0.42676174,91100.0,91099.0,0.0565]
[1765170702419,0.43276174,91100.0,91099.0,0.0575]
[1765170702625,0.36696464,91100.0,91099.0,0.0575]
[1765170702810,0.00616464,91100.0,91099.0,0.0575]
[1765170703316,0.06514464,91100.0,91099.0,0.0575]
[1765170703921,0.00516464,91100.0,91099.0,0.0575]
[1765170704612,0.00416464,91100.0,91099.0,0.0565]
[1765170704813,0.00116464,91100.0,91099.0,0.0575]
[1765170705015,0.00516464,91100.0,91099.0,0.0575]
[1765170705416,0.00116464,91100.0,91099.0,0.0565]
[1765170705724,0.00216464,91100.0,91099.0,0.0575]
[1765170705919,0.00116464,91100.0,91099.0,0.0575]
[1765170706120,0.03176464,91100.0,91099.0,0.0575]
[1765170706523,0.42194464,91100.0,91099.0,0.001]
[1765170707015,0.05898,91092.0,91091.0,0.07513]
[1765170708120,0.05998,91092.0,91091.0,0.07913]
[1765170708525,0.42078,91092.0,91091.0,0.07913]
[1765170709127,0.42078,91092.0,91091.0,0.07713]
[1765170710320,0.41978,91092.0,91091.0,0.07613]
[1765170710513,0.42078,91092.0,91091.0,0.07617]
[1765170710717,0.3914,91092.0,91091.0,0.07617]
[1765170711127,0.3904,91092.0,91091.0,0.07517]
[1765170711330,0.3934,91092.0,91091.0,0.07617]
[1765170711521,0.3638,91092.0,91091.0,0.07617]
[1765170711928,0.3648,91092.0,91091.0,0.07617]
[1765170712430,0.42378,91092.0,91091.0,0.07617]
[1765170712728,0.3944,91092.0,91091.0,0.07617]
[1765170712929,0.3648,91092.0,91091.0,0.07617]
[1765170713330,0.3944,91092.0,91091.0,0.07617]
[1765170714420,0.3648,91092.0,91091.0,0.07617]
[1765170714728,0.004,91092.0,91091.0,0.07617]
[1765170716520,0.36096464,91100.0,91099.0,0.0685072]
[1765170717124,0.00016464,91100.0,91099.0,0.0685072]
[1765170717520,4.64e-06,91100.0,91099.0,0.14724454]
[1765170717729,0.05898,91100.0,91099.0,0.13733514]
[1765170717928,0.05898,91100.0,91099.0,0.05853]
[1765170718130,0.06498,91100.0,91099.0,0.05853]
[1765170718628,0.05898,91100.0,91099.0,0.05853]
[1765170718835,0.05898,91100.0,91099.0,0.06253]
[1765170719034,0.36096464,91109.0,91108.0,0.05753]
[1765170719035,0.41994464,91109.0,91108.0,0.05753]
[1765170720530,0.42094464,91109.0,91108.0,0.05853]
[1765170721037,0.36196464,91109.0,91108.0,0.05853]
[1765170721222,0.36096464,91109.0,91108.0,0.05753]
[1765170721427,0.39056464,91109.0,91108.0,0.05853]
[1765170721734,0.41994464,91109.0,91108.0,0.05853]
[1765170721936,0.41994464,91109.0,91108.0,0.03013]
[1765170722540,0.41994464,91109.0,91108.0,0.001]
[1765170722933,0.39056464,91109.0,91108.0,0.05753]
[1765170723135,0.36096464,91109.0,91108.0,0.05853]
[1765170723535,0.41994464,91109.0,91108.0,0.05853]
[1765170723740,0.41994464,91109.0,91108.0,0.05753]
[1765170723942,0.41994464,91109.0,91108.0,0.05853]
[1765170724335,0.42194464,91109.0,91108.0,0.05853]
[1765170724532,0.42294464,91109.0,91108.0,0.05853]
[1765170724928,0.42094464,91109.0,91108.0,0.05953]
[1765170728142,0.36196464,91109.0,91108.0,0.05953]
[1765170731439,0.00116464,91109.0,91108.0,0.05953]
[1765170737054,0.00116464,91109.0,91108.0,0.56901]
[1765170738957,0.41822,91130.0,91129.0,0.05755]
[1765170740463,0.41822,91130.0,91129.0,0.01117469]
[1765170740760,0.05742,91122.0,91121.0,0.56703]
[1765170741760,0.05742,91122.0,91121.0,0.0298]
[1765170742060,0.41822,91122.0,91121.0,0.01180737]
[1765170742263,0.41922,91122.0,91121.0,0.01180737]
[1765170742465,0.43136,91122.0,91121.0,0.001]
[1765170743560,0.010977,91101.0,91100.0,0.0298]
[1765170743859,0.05742,91093.0,91092.0,0.58332]
[1765170745162,0.05742,91093.0,91092.0,0.59407405]
[1765170745463,0.02785,91093.0,91092.0,0.60507405]
[1765170745648,0.02885,91093.0,91092.0,0.60807405]
[1765170746853,0.02885,91093.0,91092.0,0.60207405]
[1765170747054,0.001,91093.0,91092.0,0.60207405]
[1765170749967,0.02885,91093.0,91092.0,0.60207405]
[1765170750667,0.001,91093.0,91092.0,0.60207405]
[1765170752870,0.05842,91093.0,91092.0,0.60207405]
[1765170753269,0.02885,91093.0,91092.0,0.60207405]
[1765170754361,0.001,91093.0,91092.0,0.60207405]
[1765170760074,0.00016464,91102.0,91101.0,0.05755]
[1765170760376,0.00016464,91102.0,91101.0,0.92775]
[1765170760668,0.3717752,91116.0,91101.0,0.938727]
[1765170760868,0.3608,91116.0,91115.0,0.05755]
[1765170762577,0.0686044,91123.0,91122.0,0.05714]
[1765170763666,0.0716044,91123.0,91122.0,0.05714]
[1765170763876,0.0726044,91123.0,91122.0,0.05714]
[1765170766274,0.0726044,91123.0,91122.0,0.07375]
[1765170770981,0.0726044,91123.0,91122.0,0.05714]
[1765170771681,0.0726044,91123.0,91122.0,0.07375]
[1765170775968,0.06163,91123.0,91122.0,0.07375]
[1765170776169,0.004,91123.0,91122.0,0.0847245]
[1765170778084,0.001,91123.0,91122.0,0.0847245]
[1765170778279,0.001,91123.0,91122.0,0.0897245]
[1765170778586,0.00016464,91125.0,91124.0,0.05606]
[1765170778888,0.3608,91134.0,91133.0,0.0670331]
[1765170779386,0.05889,91142.0,91141.0,0.05606]
[1765170779587,0.4008816,91146.0,91145.0,0.05606]
[1765170779882,0.4306616,91146.0,91145.0,0.05606]
[1765170780279,0.3717716,91146.0,91145.0,0.05606]
[1765170780576,0.3608,91146.0,91145.0,0.05606]
[1765170780884,0.3608,91146.0,91145.0,0.06703146]
[1765170781480,0.3608,91146.0,91145.0,0.57631146]
[1765170782079,0.3648,91146.0,91145.0,0.57631146]
[1765170782279,0.3658,91146.0,91145.0,0.57731146]
[1765170782884,0.3648,91146.0,91145.0,0.57631146]
[1765170783083,0.3658,91146.0,91145.0,0.57731146]
[1765170785795,0.005,91146.0,91145.0,0.57731146]
[1765170788286,0.005,91146.0,91145.0,0.59386146]
[1765170789195,0.06027,91146.0,91145.0,0.59386146]
[1765170792695,0.03203,91146.0,91145.0,0.59386146]
[1765170795696,0.005,91146.0,91145.0,0.59386146]
[1765170795991,0.005,91146.0,91145.0,0.73386146]
[1765170796382,0.3608,91154.0,91153.0,0.05808]
[1765170797092,0.3608,91154.0,91153.0,0.0690507]
[1765170797588,0.3708,91154.0,91153.0,0.0700507]
[1765170797781,0.3748,91154.0,91153.0,0.0700507]
[1765170801700,0.014,91154.0,91153.0,0.2200507]
[1765170801896,0.014,91154.0,91153.0,0.0700507]
[1765170804193,0.06936,91154.0,91153.0,0.0700507]
[1765170810105,0.014,91154.0,91153.0,0.0700507]
[1765170810408,0.014,91154.0,91153.0,0.2200507]
[1765170811609,0.014,91154.0,91153.0,0.5500507]
[1765170812509,0.011,91154.0,91153.0,0.5520507]
[1765170813814,0.001,91154.0,91153.0,0.5600507]
[1765170815902,0.001,91154.0,91153.0,1.0690507]
[1765170819306,0.41616,91183.0,91182.0,0.05808]
[1765170820308,0.42316,91183.0,91182.0,0.05808]
[1765170820817,0.42316,91183.0,91182.0,0.02811]